bitfinex/quotes_SOLUSD_20240716
["timestamp","ask_amount","ask_price","bid_price","bid_amount"]
[1721145169316,6.2508,159.98,159.91,6.2532]
[1721145169522,15.6224,160.03,159.9,15.67149869]
[1721145169747,6.2509,159.98,159.92,6.2527]
[1721145170043,6.2506,159.99,159.9,15.6339]
[1721145170246,15.6224,160.03,159.94,6.2523]
[1721145170451,15.6224,160.03,159.9,15.6339]
[1721145170628,41.29,160.01,159.9,15.6339]
[1721145170824,6.251,159.98,159.92,6.2531]
[1721145171150,66.8557,160.07,159.93,15.6314]
[1721145171361,6.2499,160.01,159.93,15.6314]
[1721145171550,66.8557,160.07,159.93,15.6314]
[1721145171728,15.6213,160.04,159.93,21.8841]
[1721145171926,6.2508,159.98,159.92,6.2528]
[1721145172243,15.6242,160.01,159.89,15.6348]
[1721145172448,56.9142,160.01,159.89,15.6348]
[1721145172629,6.2515,159.97,159.91,6.2532]
[1721145173027,56.9142,160.01,159.89,15.6348]
[1721145173228,6.2513,159.97,159.91,6.2533]
[1721145173535,6.2511,159.97,159.91,6.2534]
[1721145173736,41.29,160.01,159.92,15.6322]
[1721145173955,15.6202,160.05,159.92,15.6322]
[1721145174252,6.2522,159.95,159.88,34.5557]
[1721145174428,20.0,160.04,159.88,18.92]
[1721145174630,20.0,160.04,159.91,15.6329]
[1721145174829,20.0,160.04,159.92,45.0]
[1721145175050,20.0,160.04,159.94,15.6307]
[1721145175355,56.9073,160.08,159.95,45.0]
[1721145175733,6.2479,160.06,159.96,18.92]
[1721145176049,6.2491,160.03,159.97,45.0]
[1721145176260,6.25,160.0,159.97,45.0]
[1721145176450,15.6199,160.06,159.96,45.0]
[1721145176751,6.2487,160.04,159.97,6.251]
[1721145176949,6.2479,160.06,160.0,6.2499]
[1721145177151,15.6157,160.1,160.01,6.2494]
[1721145177340,0.4706207,160.21,160.02,51.249]
[1721145177341,15.6123,160.13,160.02,51.249]
[1721145177546,56.9023,160.13,160.02,51.249]
[1721145177749,6.2469,160.08,160.02,51.249]
[1721145178041,6.2476,160.06,160.02,45.0]
[1721145178240,15.6152,160.1,160.02,45.0]
[1721145178445,6.2472,160.07,160.02,45.0]
[1721145178834,6.2479,160.06,160.02,45.0]
[1721145179146,15.6152,160.1,159.98,15.626]
[1721145179353,6.2484,160.04,159.99,45.0]
[1721145179728,6.2489,160.03,159.99,45.0]
[1721145179929,41.29,160.09,160.0,15.624]
[1721145180129,6.247,160.08,160.02,6.2491]
[1721145180325,6.247,160.08,160.0,15.624]
[1721145180326,15.6141,160.12,160.0,15.624]
[1721145180531,20.0,160.11,160.05,6.2477]
[1721145180746,6.2456,160.12,160.05,6.2477]
[1721145180950,31.2231,160.14,159.97,18.92]
[1721145181232,6.246,160.11,160.05,6.2478]
[1721145181533,6.2453,160.12,160.06,60.619]
[1721145181741,56.3761,160.2,160.03,15.6219]
[1721145181942,6.2471,160.08,160.03,15.6219]
[1721145182129,6.2468,160.08,160.04,45.0]
[1721145182338,6.2461,160.1,160.04,51.248]
[1721145182537,15.6117,160.14,160.04,45.0]
[1721145182752,6.2461,160.1,160.04,45.0]
[1721145182931,15.6117,160.14,160.04,45.0]
[1721145183140,15.6143,160.11,160.01,6.2492]
[1721145183338,15.6143,160.11,160.02,45.0]
[1721145183558,6.2479,160.06,160.02,45.0]
[1721145183771,15.6143,160.11,160.03,6.2488]
[1721145183937,15.6143,160.11,160.01,60.6231]
[1721145184139,15.6168,160.09,159.97,15.6277]
[1721145184358,6.2476,160.06,159.93,31.2622]
[1721145184658,41.29,160.12,160.05,15.6193]
[1721145184659,6.2454,160.12,160.05,15.6193]
[1721145184962,41.29,160.16,160.09,6.2461]
[1721145185144,41.29,160.16,160.07,15.6174]
[1721145185145,6.2445,160.14,160.08,6.2468]
[1721145185359,0.4706207,160.21,160.14,6.2444]
[1721145185549,0.4706207,160.21,160.08,6.2464]
[1721145185752,0.4706207,160.21,160.02,10.0]
[1721145185753,6.2433,160.18,160.09,79.5355]
[1721145185948,6.2435,160.17,160.12,6.2451]
[1721145186146,6.2429,160.19,160.14,6.2444]
[1721145186354,6.2446,160.14,160.09,45.0]
[1721145186659,15.61,160.16,160.09,45.0]
[1721145186860,6.2453,160.12,160.06,21.8661]
[1721145187041,15.61,160.16,160.06,15.6185]
[1721145187237,41.29,160.2,160.08,15.6164]
[1721145187238,56.8957,160.2,160.08,15.6164]
[1721145187561,41.29,160.2,160.11,15.6134]
[1721145187749,6.2439,160.16,160.11,21.859]
[1721145187949,6.2448,160.14,160.08,15.6169]
[1721145188157,6.2438,160.16,160.08,15.6169]
[1721145188378,0.4706207,160.21,160.1,15.6145]
[1721145188662,6.2454,160.12,160.07,15.6178]
[1721145188834,6.2457,160.11,160.08,45.0]
[1721145189038,6.2457,160.11,160.06,6.2475]
[1721145189239,41.29,160.16,160.04,15.6209]
[1721145189438,6.2454,160.12,160.07,6.2472]
[1721145189663,6.2442,160.15,160.09,6.2462]
[1721145189865,15.6084,160.17,160.05,15.6197]
[1721145190254,15.6084,160.17,160.07,15.6175]
[1721145190556,56.8958,160.2,160.1,6.246]
[1721145190747,6.2438,160.16,160.11,51.2456]
[1721145190949,6.2438,160.16,160.11,45.0]
[1721145191153,20.0,160.19,160.11,45.0]
[1721145191354,6.244,160.16,160.1,45.0]
[1721145191555,6.2446,160.14,160.1,45.0]
[1721145191759,6.2444,160.15,160.1,45.0]
[1721145191964,0.4706207,160.21,160.1,45.0]
[1721145192163,0.4706207,160.21,160.11,18.92]
[1721145192340,0.4706207,160.21,160.12,45.0]
[1721145192546,0.4706207,160.21,160.14,6.2444]
[1721145192547,6.2422,160.2,160.14,6.2444]
[1721145192854,0.4706207,160.21,160.15,45.0]
[1721145193047,0.4706207,160.21,160.12,31.2259]
[1721145193243,0.4706207,160.21,160.13,45.0]
[1721145193442,6.2426,160.19,160.13,60.6122]
[1721145193645,6.2431,160.18,160.13,66.857]
[1721145193948,6.2441,160.15,160.1,15.615]
[1721145194146,6.2441,160.15,160.05,25.023194]
[1721145194147,41.29,160.2,160.07,15.6179]
[1721145194363,6.2436,160.17,160.12,6.2451]
[1721145194558,41.29,160.2,160.12,6.2452]
[1721145194855,41.29,160.2,160.11,6.2455]
[1721145195062,41.29,160.2,160.15,6.2438]
[1721145195369,6.243,160.18,160.14,15.6107]
[1721145195543,0.4706207,160.21,160.14,15.6107]
[1721145195741,6.243,160.18,160.13,6.2445]
[1721145195955,6.2434,160.17,160.12,6.2452]
[1721145196153,0.4706207,160.21,160.06,31.2371]
[1721145196575,6.2434,160.17,160.11,6.2453]
[1721145196748,6.243,160.18,160.13,6.2448]
[1721145196950,0.4706207,160.21,160.1,16.86338494]
[1721145197172,20.4706207,160.21,160.1,15.6149]
[1721145197349,0.4706207,160.21,160.06,31.2371]
[1721145197671,0.4706207,160.21,160.02,31.398285]
[1721145197874,0.4706207,160.21,160.05,6.2477]
[1721145197875,6.2456,160.12,160.05,6.2477]
[1721145198061,6.2444,160.15,160.07,15.6175]
[1721145198255,6.2452,160.13,160.07,21.8644]
[1721145198444,6.2456,160.12,160.08,1.24895509]
[1721145198643,41.29,160.13,160.01,31.247]
[1721145198858,41.29,160.16,160.01,31.247]
[1721145199167,41.29,160.16,160.07,6.2472]
[1721145199346,6.2454,160.12,160.06,15.6183]
[1721145199547,41.29,160.16,160.06,15.6183]
[1721145199867,6.2446,160.14,160.08,21.8628]
[1721145200073,6.2446,160.14,160.08,15.6164]
[1721145200245,41.29,160.16,160.12,6.245]
[1721145200448,6.2428,160.19,160.11,15.6138]
[1721145200666,6.9678207,160.21,160.11,15.6138]
[1721145200943,41.29,160.2,160.15,6.2441]
[1721145201149,6.7126207,160.21,160.16,1.15551285]
[1721145201150,6.2429,160.19,160.16,1.15551285]
[1721145201364,6.2429,160.19,160.06,31.2376]
[1721145201365,0.4706207,160.21,160.17,1.24842811]
[1721145201568,0.4706207,160.21,160.12,18.92]
[1721145201765,0.4706207,160.21,160.13,51.2445]
[1721145202071,0.4706207,160.21,160.15,6.244]
[1721145202273,0.4706207,160.21,160.16,45.0]
[1721145202583,0.4706207,160.21,160.12,15.6124]
[1721145202873,47.533,160.18,160.13,1.24867497]
[1721145203078,0.4706207,160.21,160.13,1.24867497]
[1721145203374,6.2434,160.17,160.14,0.46093803]
[1721145203549,6.2429,160.18,160.14,0.46093803]
[1721145203873,6.244,160.16,160.11,15.6133]
[1721145204044,16.0759207,160.21,159.98,20.0]
[1721145204045,6.2442,160.15,160.09,6.2464]
[1721145204475,16.0759207,160.21,160.11,6.2454]
[1721145204648,20.0,160.2,160.12,1.24829484]
[1721145204850,20.0,160.2,160.08,1.24868609]
[1721145205054,6.2461,160.1,160.04,15.6208]
[1721145205871,41.29,160.13,160.04,21.869]
[1721145205872,6.2465,160.09,160.04,21.869]
[1721145206053,41.29,160.13,160.05,7.49694005]
[1721145206253,41.29,160.13,160.05,6.248]
[1721145206478,6.246,160.11,160.05,6.248]
[1721145206677,6.246,160.11,160.01,31.2463]
[1721145206678,41.29,160.13,160.02,18.92]
[1721145206877,6.5546,160.16,160.02,18.92]
[1721145206878,6.5546,160.16,160.08,6.2468]
[1721145207177,41.29,160.17,160.1,18.92]
[1721145207381,6.5546,160.23,160.17,6.2433]
[1721145207558,6.5546,160.23,160.18,1.24830947]
[1721145207886,6.5546,160.23,160.19,7.49081114]
[1721145208051,41.29,160.24,160.19,1.24831114]
[1721145208251,41.29,160.24,160.17,6.2432]
[1721145208252,0.1598496,160.21,160.17,6.2432]
[1721145208450,0.1598496,160.21,160.18,1.24829477]
[1721145208795,0.1598496,160.21,160.17,15.6078]
[1721145209265,0.1598496,160.21,160.18,45.0]
[1721145209470,0.1598496,160.21,160.2,6.2421]
[1721145209681,0.1598496,160.21,160.2,51.2421]
[1721145209851,0.1598496,160.21,160.2,52.4901245]
[1721145210188,0.1598496,160.21,160.2,51.2421]
[1721145210664,0.1598496,160.21,160.2,45.0]
[1721145210976,0.1598496,160.21,160.15,1.24804674]
[1721145211187,0.1598496,160.21,160.2,6.2421]
[1721145212248,0.1598496,160.21,160.2,52.48999994]
[1721145212447,0.81745636,160.39,160.3,6.2382]
[1721145212684,0.81745636,160.39,160.25,6.24]
[1721145212685,41.29,160.36,160.25,6.24]
[1721145212870,41.29,160.32,160.21,18.92]
[1721145213049,41.29,160.32,160.27,6.2394]
[1721145213246,41.29,160.32,160.28,46.2475016]
[1721145213449,41.29,160.32,160.28,45.0]
[1721145213670,41.29,160.32,160.28,1.24747065]
[1721145213871,41.29,160.32,160.28,7.48647065]
[1721145214290,16.40445636,160.39,160.28,7.48647065]
[1721145214291,41.29,160.37,160.29,45.0]
[1721145214659,6.2366,160.35,160.29,51.2386]
[1721145214873,6.2366,160.35,160.23,18.92]
[1721145214874,0.81745636,160.36,160.25,15.6006]
[1721145215079,9.25575764,160.4,160.3,6.2382]
[1721145215080,6.2363,160.35,160.3,6.2382]
[1721145215379,6.2363,160.35,160.26,65.16737145]
[1721145215380,41.29,160.36,160.27,15.598]
[1721145215551,41.29,160.36,160.28,45.0]
[1721145215747,0.81745636,160.39,160.29,22.2582571]
[1721145215954,41.29,160.36,160.31,6.2378]
[1721145216168,31.174,160.39,160.25,15.5997]
[1721145216374,6.2375,160.32,160.26,6.2397]
[1721145216554,47.5273,160.33,160.27,6.2394]
[1721145216884,41.29,160.33,160.3,6.2383]
[1721145217181,3.17965764,160.4,160.3,18.92]
[1721145217383,6.2378,160.32,160.27,6.2393]
[1721145217671,41.29,160.36,160.29,15.5958]
[1721145217864,44.46965764,160.4,160.34,6.2364]
[1721145217865,3.17965764,160.4,160.34,6.2364]
[1721145218053,44.46965764,160.4,160.3,21.8331]
[1721145218381,6.2359,160.37,160.31,6.2377]
[1721145218564,6.2359,160.37,160.32,6.2373]
[1721145218957,6.2359,160.37,160.3,34.5152]
[1721145219170,44.46965764,160.4,160.32,6.2371]
[1721145219379,6.2359,160.37,160.3,15.5952]
[1721145219570,6.2367,160.35,160.3,15.5952]
[1721145219959,6.2367,160.35,160.3,21.8334]
[1721145220263,6.2359,160.37,160.31,0.56575257]
[1721145220457,6.2362,160.36,160.3,40.7534]
[1721145220660,6.2365,160.35,160.3,21.8334]
[1721145220854,20.0,160.39,160.31,1.24706588]
[1721145221054,6.2363,160.35,160.31,1.24706588]
[1721145221291,6.2363,160.35,160.28,18.92]
[1721145221477,6.2367,160.34,160.29,1.24709136]
[1721145221662,6.236,160.36,160.31,6.2376]
[1721145221871,6.236,160.36,160.3,34.5152]
[1721145221872,6.2354,160.38,160.32,6.2373]
[1721145222190,6.2352,160.38,160.32,6.2373]
[1721145222368,6.2356,160.37,160.31,6.2378]
[1721145222682,6.2352,160.38,160.32,1.24702]
[1721145222988,44.46965764,160.4,160.39,6.2348]
[1721145222989,3.17965764,160.4,160.39,6.2348]
[1721145223156,13.81117656,160.56,160.27,6.0554]
[1721145223157,42.35620759,160.52,160.37,10.0]
[1721145223361,0.85704773,160.56,160.48,15.5782]
[1721145223553,7.08534773,160.56,160.48,15.5782]
[1721145223822,0.85704773,160.56,160.49,1.24562236]
[1721145223967,0.85704773,160.56,160.48,15.5782]
[1721145224173,0.85704773,160.56,160.43,31.1643]
[1721145224174,0.85704773,160.56,160.52,15.5743]
[1721145224478,0.85704773,160.56,160.43,41.1643]
[1721145224479,0.85704773,160.56,160.53,1.24502053]
[1721145224679,0.85704773,160.56,160.48,15.5782]
[1721145224877,0.85704773,160.56,160.48,1.44145875]
[1721145225088,6.2285,160.55,160.48,1.44145875]
[1721145225273,0.85704773,160.56,160.49,15.5763]
[1721145225597,0.85704773,160.56,160.52,15.5739]
[1721145226086,0.85704773,160.56,160.52,17.01499955]
[1721145226305,41.29,160.68,160.55,15.5705]
[1721145226592,6.2258,160.63,160.57,6.2277]
[1721145226782,56.8472,160.7,160.58,15.5678]
[1721145226990,56.8472,160.7,160.58,21.7948]
[1721145227294,0.8178157,160.71,160.58,9.88215775]
[1721145227496,2.37364507,160.71,160.59,1.24466349]
[1721145227704,2.37337378,160.71,160.56,18.92]
[1721145227908,6.2257,160.63,160.56,25.1478]
[1721145228218,1.55598295,160.7,160.51,15.5749]
[1721145228437,1.55598295,160.7,160.44,6.0849]
[1721145228438,15.5689,160.58,160.44,6.0849]
[1721145228899,15.5717,160.55,160.45,1.44172827]
[1721145229289,31.1128,160.71,160.51,15.5751]
[1721145229487,15.5564,160.71,160.6,6.2265]
[1721145230012,15.5564,160.71,160.58,15.5683]
[1721145230212,41.29,160.68,160.58,15.5683]
[1721145230703,6.2249,160.65,160.58,6.2272]
[1721145230903,56.8492,160.68,160.57,21.797]
[1721145231087,6.2255,160.63,160.57,21.797]
[1721145231286,6.2266,160.61,160.54,21.8012]
[1721145231488,6.226,160.62,160.54,15.5724]
[1721145231680,0.4841592,160.7,160.61,6.2259]
[1721145231876,16.0412592,160.7,160.56,34.4895]
[1721145232073,16.0412592,160.7,160.56,18.92]
[1721145232074,6.2248,160.65,160.56,18.92]
[1721145232274,6.2231,160.69,160.63,6.2253]
[1721145232589,0.4841592,160.7,160.55,31.1413]
[1721145232590,6.224,160.67,160.62,21.7904]
[1721145232904,6.2244,160.66,160.59,6.2266]
[1721145233205,15.5582,160.69,160.58,15.5677]
[1721145233402,15.5582,160.69,160.57,1.44065081]
[1721145233403,6.2274,160.58,160.57,1.44065081]
[1721145233606,42.84656275,160.67,160.57,1.44065081]
[1721145233828,41.29,160.67,160.59,15.5675]
[1721145233976,0.4841592,160.7,160.6,1.24470641]
[1721145234178,0.4841592,160.7,160.61,15.5647]
[1721145234484,0.4841592,160.7,160.51,10.0]
[1721145234485,6.2246,160.66,160.57,15.5688]
[1721145234682,0.4841592,160.7,160.54,18.92]
[1721145235009,6.2254,160.64,160.58,6.2271]
[1721145235219,6.2246,160.66,160.59,6.2267]
[1721145235422,2.03984013,160.7,160.56,15.5698]
[1721145235626,2.03984013,160.7,160.55,1.44083027]
[1721145235627,6.7070592,160.7,160.64,6.225]
[1721145235915,6.7072592,160.7,160.64,6.2249]
[1721145236125,6.2239,160.68,160.61,6.2262]
[1721145236415,0.4841592,160.7,160.64,6.2249]
[1721145236631,0.4841592,160.7,160.62,6.2256]
[1721145236921,6.2193,160.79,160.63,10.0]
[1721145237127,707.20815693,160.93,160.87,15.5399]
[1721145237418,707.20815693,160.93,160.91,12.2878]
[1721145237987,707.20815693,160.93,160.91,22.2878]
[1721145238194,707.20815693,160.93,160.92,1.4375174]
[1721145238496,707.20815693,160.93,160.92,27.6517174]
[1721145238497,690.54155693,160.93,160.92,27.6517174]
[1721145238688,690.36155693,160.93,160.92,31.37908531]
[1721145238895,690.36155693,160.93,160.92,17.6517174]
[1721145239094,666.66835693,160.93,160.92,17.6517174]
[1721145239318,665.71265693,160.93,160.92,17.6517174]
[1721145239493,665.71265693,160.93,160.92,7.6517174]
[1721145239702,665.71265693,160.93,160.92,26.5717174]
[1721145240516,665.71265693,160.93,160.92,7.6517174]
[1721145241096,665.71265693,160.93,160.92,1.4375174]
[1721145241498,665.71265693,160.93,160.92,42.5088174]
[1721145241709,659.23085693,160.93,160.92,69.83415532]
[1721145241901,659.23085693,160.93,160.92,71.4288174]
[1721145242311,659.23085693,160.93,160.92,79.7378232]
[1721145242498,659.05085693,160.93,160.92,79.9078232]
[1721145243099,659.05085693,160.93,160.92,61.5988174]
[1721145243716,659.05085693,160.93,160.92,1.4375174]
[1721145244629,659.05085693,160.93,160.87,15.54]
[1721145244806,659.05085693,160.93,160.83,15.5439]
[1721145244997,6.2154,160.9,160.83,6.2177]
[1721145245195,41.29,160.91,160.75,31.1037]
[1721145245416,41.29,160.91,160.75,32.54273764]
[1721145245599,659.05085693,160.93,160.8,31.0935]
[1721145245922,659.05085693,160.93,160.88,6.2157]
[1721145246104,659.05085693,160.93,160.86,15.5414]
[1721145246429,659.05085693,160.93,160.92,6.2142]
[1721145247704,659.05085693,160.93,160.92,25.3042]
[1721145248226,659.05085693,160.93,160.92,25.1342]
[1721145248521,659.05085693,160.93,160.92,25.3042]
[1721145248726,659.05085693,160.93,160.92,25.1342]
[1721145249026,659.05085693,160.93,160.92,25.4742]
[1721145249234,659.05085693,160.93,160.92,6.2142]
[1721145249607,659.05085693,160.93,160.9,15.5373]
[1721145250015,659.05085693,160.93,160.86,24.894772]
[1721145250209,659.05085693,160.93,160.87,6.2161]
[1721145250410,6.2147,160.91,160.85,15.5422]
[1721145250623,0.17,160.92,160.81,15.546]
[1721145250805,15.8757,160.92,160.81,15.546]
[1721145251009,41.29,160.91,160.77,15.5494]
[1721145251343,6.2173,160.85,160.77,6.2196]
[1721145251522,22.5532,160.87,160.79,6.2191]
[1721145251709,22.5532,160.87,160.82,15.5447]
[1721145251911,22.5532,160.87,160.74,10.0]
[1721145252142,22.5532,160.87,160.72,56.023703]
[1721145252305,28.7695,160.87,160.81,6.2184]
[1721145252504,28.7695,160.87,160.77,15.5497]
[1721145252505,6.2166,160.86,160.8,6.2188]
[1721145252832,6.217,160.85,160.77,15.5501]
[1721145253001,22.5532,160.87,160.72,31.1091]
[1721145253002,0.17,160.84,160.72,31.1091]
[1721145253203,0.17,160.84,160.73,15.5535]
[1721145253539,0.17,160.84,160.73,6.2215]
[1721145253540,15.5438,160.84,160.73,6.2215]
[1721145253708,6.2196,160.79,160.7,15.5568]
[1721145253906,6.2201,160.77,160.7,6.2227]
[1721145254107,41.46,160.83,160.69,15.5576]
[1721145254325,6.2189,160.8,160.65,25.42725684]
[1721145254624,41.29,160.83,160.75,15.552]
[1721145254924,63.8432,160.87,160.78,15.5489]
[1721145255101,63.8432,160.87,160.78,21.7682]
[1721145255297,1.46163732,160.86,160.74,15.5529]
[1721145255605,1.46163732,160.86,160.69,28.92]
[1721145255807,22.5532,160.87,160.78,15.5483]
[1721145256432,6.2193,160.79,160.74,15.5521]
[1721145256735,79.3838,160.87,160.71,15.5559]
[1721145256736,41.29,160.83,160.71,15.5559]
[1721145257103,15.8854,160.82,160.68,15.5587]
[1721145257303,41.29,160.79,160.68,15.5587]
[1721145257510,6.2201,160.77,160.7,6.2224]
[1721145257716,6.2201,160.77,160.65,6.2244]
[1721145257717,6.2225,160.71,160.65,6.2244]
[1721145257916,15.5503,160.77,160.64,15.5622]
[1721145258142,21.8037,160.75,160.64,21.7872]
[1721145258312,21.8037,160.75,160.6,37.6255123]
[1721145258313,41.29,160.72,160.6,37.6255123]
[1721145258510,41.29,160.68,160.54,31.1431]
[1721145258717,21.63163732,160.71,160.61,15.5654]
[1721145258942,6.2239,160.67,160.61,6.2259]
[1721145259237,1.46163732,160.7,160.54,31.1431]
[1721145259451,0.17,160.71,160.55,18.92]
[1721145259739,47.5121,160.72,160.65,6.2244]
[1721145260040,6.2228,160.7,160.64,21.7867]
[1721145260216,41.29,160.72,160.64,15.562]
[1721145260413,31.089,160.83,160.61,18.92]
[1721145260414,15.547,160.81,160.61,18.92]
[1721145260616,6.2207,160.76,160.69,6.223]
[1721145260830,15.549,160.79,160.68,15.5579]
[1721145261430,6.2215,160.74,160.68,15.5579]
[1721145261641,15.549,160.79,160.65,6.2243]
[1721145261642,6.2224,160.71,160.65,6.2243]
[1721145261937,15.551,160.77,160.64,15.5621]
[1721145262323,41.29,160.88,160.63,31.1256]
[1721145262520,6.2197,160.78,160.71,6.2223]
[1721145262846,15.5435,160.84,160.74,6.2212]
[1721145262847,6.2175,160.84,160.74,6.2212]
[1721145263148,6.2175,160.84,160.76,15.5506]
[1721145263318,21.2417,160.87,160.77,6.22]
[1721145263644,6.2177,160.84,160.77,6.22]
[1721145263858,21.2417,160.87,160.78,6.2193]
[1721145264019,21.2417,160.87,160.8,15.5471]
[1721145264220,21.2417,160.87,160.72,18.92]
[1721145264519,21.2417,160.87,160.76,15.5502]
[1721145264824,21.2417,160.87,160.81,6.2184]
[1721145265028,21.2417,160.87,160.71,31.2801]
[1721145265029,6.2167,160.86,160.8,6.2185]
[1721145265229,21.2417,160.87,160.79,15.5474]
[1721145265433,21.2417,160.87,160.82,15.5452]
[1721145265643,21.2417,160.87,160.85,6.2169]
[1721145265823,21.2417,160.87,160.84,15.5425]
[1721145266024,21.2417,160.87,160.85,6.2166]
[1721145266352,659.05085693,160.93,160.87,15.5403]
[1721145266943,659.05085693,160.93,160.88,6.2154]
[1721145267243,659.05085693,160.93,160.89,25.1353]
[1721145267454,659.05085693,160.93,160.9,6.215]
[1721145267620,659.05085693,160.93,160.89,18.92]
[1721145267822,659.05085693,160.93,160.87,15.5403]
[1721145268028,659.05085693,160.93,160.9,6.2149]
[1721145268561,665.26475693,160.93,160.87,15.5403]
[1721145268738,659.05085693,160.93,160.87,15.5403]
[1721145268930,659.05085693,160.93,160.83,15.5434]
[1721145269131,659.05085693,160.93,160.84,25.1372]
[1721145269325,6.215,160.91,160.84,18.92]
[1721145269550,646.55085693,160.93,160.86,15.541]
[1721145269851,646.55085693,160.93,160.83,21.7616]
[1721145270027,6.2143,160.92,160.83,15.5442]
[1721145270231,6.2143,160.92,160.84,18.92]
[1721145270439,646.55085693,160.93,160.85,15.5416]
[1721145270633,6.2154,160.9,160.83,6.2177]
[1721145271158,646.55085693,160.93,160.86,18.92]
[1721145271652,646.55085693,160.93,160.92,6.2142]
[1721145271958,646.55085693,160.93,160.91,21.7503]
[1721145272123,646.55085693,160.93,160.91,21.7502]
[1721145272329,646.55085693,160.93,160.92,6.2142]
[1721145272545,6.2142,160.92,160.87,15.5403]
[1721145272732,646.55085693,160.93,160.87,15.5403]
[1721145272933,0.3680302,160.92,160.84,6.2172]
[1721145273239,646.55085693,160.93,160.84,6.2172]
[1721145273448,6.2166,160.86,160.8,6.2185]
[1721145273651,6.217,160.85,160.79,21.7668]
[1721145273833,0.3680302,160.9,160.79,15.5477]
[1721145274150,1.46163732,160.89,160.8,1.24322885]
[1721145274355,41.29,160.92,160.81,18.92]
[1721145274531,6.2143,160.92,160.86,6.2161]
[1721145274732,646.55085693,160.93,160.84,15.5433]
[1721145274926,6.2157,160.89,160.83,6.2173]
[1721145275147,6.2166,160.86,160.81,6.2184]
[1721145275356,41.29,160.89,160.75,31.103]
[1721145275541,6.2184,160.82,160.76,21.7713]
[1721145275857,6.2174,160.84,160.77,1.24352926]
[1721145276029,15.5413,160.87,160.77,1.24352926]
[1721145276030,6.2162,160.87,160.77,1.24352926]
[1721145276232,0.3680302,160.92,160.78,1.24323735]
[1721145276440,6.2158,160.88,160.82,21.763]
[1721145276648,0.3680302,160.92,160.82,15.545]
[1721145276850,6.2166,160.86,160.83,1.24226841]
[1721145277354,1.82966752,160.92,160.81,19.80838449]
[1721145277863,6.2159,160.88,160.82,21.7625]
[1721145278029,1.46163732,160.92,160.82,21.7625]
[1721145278234,1.46163732,160.92,160.82,15.5445]
[1721145278435,6.2162,160.87,160.82,15.5445]
[1721145278641,6.2158,160.88,160.82,21.7625]
[1721145278857,15.5372,160.91,160.79,15.548]
[1721145279136,6.2166,160.86,160.8,25.1388]
[1721145279445,6.2171,160.85,160.79,6.2189]
[1721145279632,16.99993732,160.9,160.78,15.5491]
[1721145279837,6.2167,160.86,160.78,15.5491]
[1721145280036,6.2167,160.86,160.8,21.7652]
[1721145280037,6.2169,160.86,160.8,21.7652]
[1721145280759,6.217,160.85,160.81,1.24307029]
[1721145281061,6.2165,160.87,160.81,7.46117029]
[1721145281363,6.2158,160.88,160.83,6.2176]
[1721145281734,6.2158,160.88,160.82,6.218]
[1721145282035,646.55085693,160.93,160.83,20.33075459]
[1721145282232,646.55085693,160.93,160.83,18.92]
[1721145282461,646.55085693,160.93,160.78,10.0]
[1721145282462,646.55085693,160.93,160.82,18.92]
[1721145282634,646.55085693,160.93,160.85,6.2169]
[1721145282836,646.55085693,160.93,160.81,15.5461]
[1721145283147,646.55085693,160.93,160.7,47.61542069]
[1721145283148,6.6304,160.9,160.7,37.61542069]
[1721145283343,0.3680302,160.92,160.53,22.02012656]
[1721145283344,6.222,160.72,160.65,6.2244]